lending/lending_fUSD_20240621
["ID","MTS","AMOUNT","RATE_DAILY","PERIOD"]
[330061516,1718977844685,-151.0,0.00019893,2]
[330061517,1718977844694,-151.0,0.00019893,2]
[330061518,1718977844704,-151.0,0.00019893,2]
[330061519,1718977844713,-151.0,0.00019893,2]
[330061520,1718977844723,-39983.11229786,0.00019893,2]
[330061521,1718977844733,-2014.18467041,0.00019893,2]
[330061522,1718977844742,-319.80994208,0.00019893,2]
[330061523,1718977844751,-500.0,0.0002,2]
[330061524,1718977844946,-4347.0478541,0.0002,2]
[330061525,1718977844964,-1000.0,0.0002,2]
[330061526,1718977844974,-642.24662201,0.00020142,2]
[330061527,1718977844986,-10000.0,0.00020169,2]
[330061528,1718977844998,-151.0,0.00020169,2]
[330061529,1718977845008,-151.0,0.00020169,2]
[330061530,1718977845018,-151.0,0.00020169,2]
[330061531,1718977845028,-151.0,0.00020169,2]
[330061532,1718977845038,-155.616728,0.00020278,2]
[330061533,1718977845047,-151.0,0.00020278,2]
[330061534,1718977845057,-151.0,0.00020278,2]
[330061535,1718977845066,-151.0,0.00020278,2]
[330061536,1718977845078,-1272.0,0.00020278,2]
[330061537,1718977845088,-1830.0,0.00020278,2]
[330061538,1718977845097,-359.0,0.00020278,2]
[330061539,1718977845107,-165.0,0.00020278,2]
[330061540,1718977845116,-442.0,0.00020278,2]
[330061541,1718977845126,-1654.0,0.00020278,2]
[330061542,1718977845135,-617.0,0.00020278,2]
[330061543,1718977845145,-812.0,0.00020278,2]
[330061544,1718977845155,-2411.0,0.00020278,2]
[330061545,1718977845164,-1303.0,0.00020278,2]
[330061546,1718977845173,-448.0,0.00020278,2]
[330061547,1718977845183,-150.0,0.00020278,2]
[330061548,1718977845193,-547.0,0.00020278,2]
[330061549,1718977845202,-3199.0,0.00020278,2]
[330061550,1718977845212,-1983.0,0.00020278,2]
[330061551,1718977845221,-5797.0,0.00020278,2]
[330061552,1718977845230,-5166.0,0.00020278,2]
[330061553,1718977845240,-290.0,0.00020278,2]
[330061554,1718977845249,-1196.0,0.00020278,2]
[330061555,1718977845258,-1659.0,0.00020278,2]
[330061556,1718977845267,-38146.0,0.00020278,2]
[330061557,1718977845276,-150.0,0.00020278,2]
[330061558,1718977845287,-9462.90168783,0.00020438,2]
[330061559,1718977845296,-151.0,0.00020892,2]
[330061560,1718977845307,-151.0,0.00020892,2]
[330061561,1718977845316,-151.0,0.00020892,2]
[330061562,1718977845326,-612.968945,0.00020892,2]
[330061563,1718977845335,-612.968945,0.00020892,2]
[330061564,1718977845344,-39983.11229786,0.00020892,2]
[330061565,1718977845353,-2014.18467041,0.00020892,2]
[330061566,1718977845363,-689.92053766,0.00020901,2]
[330061567,1718977845372,-2751.0,0.00020902,2]
[330061568,1718977845382,-515.44,0.00020902,2]
[330061569,1718977845391,-200.0,0.00020902,2]
[330061570,1718977845401,-431.07,0.00020902,2]
[330061571,1718977845411,-153.811699,0.00020902,2]
[330061572,1718977845420,-155.605512,0.00020902,2]
[330061573,1718977845430,-753.39274115,0.00020999,2]
[330061574,1718977845439,-1250.0,0.00021,2]
[330061575,1718977845448,-9462.90168783,0.00021255,2]
[330061576,1718977845458,-228.011237,0.0002137,2]
[330061577,1718977845467,-185.176724,0.0002137,2]
[330061578,1718977845476,-151.0,0.0002137,2]
[330061579,1718977845486,-268.900052,0.0002137,2]
[330061580,1718977845495,-151.0,0.0002137,2]
[330061581,1718977845505,-151.0,0.0002137,2]
[330061582,1718977845514,-151.0,0.0002137,2]
[330061583,1718977845523,-151.0,0.0002137,2]
[330061584,1718977845533,-151.0,0.0002137,2]
[330061585,1718977845544,-151.0,0.0002137,2]
[330061586,1718977845553,-151.0,0.0002137,2]
[330061587,1718977845565,-151.0,0.0002137,2]
[330061588,1718977845575,-152.860459,0.0002137,2]
[330061589,1718977845584,-612.968945,0.0002137,2]
[330061590,1718977845593,-612.968945,0.0002137,2]
[330061591,1718977845603,-642.24662201,0.00021391,2]
[330061592,1718977845613,-530.38688184,0.00021612,2]
[330061593,1718977845623,-200.301953,0.00021613,2]
[330061594,1718977845632,-296.20867588,0.00021643,2]
[330061595,1718977845642,-2003.31430848,0.00021643,2]
[330061596,1718977845651,-833.01,0.00021644,2]
[330061597,1718977845660,-154.05,0.00021644,2]
[330061598,1718977845670,-7835.93141544,0.0002168,2]
[330061599,1718977845680,-1000.0,0.000217,2]
[330061600,1718977845689,-338.40173994,0.0002179,7]
[330061601,1718977845699,-1411.0,0.000218,2]
[330061602,1718977845709,-151.0,0.000218,2]
[330061603,1718977845719,-151.0,0.000218,2]
[330061604,1718977845728,-151.0,0.000218,2]
[330061605,1718977845738,-151.0,0.000218,2]
[330061606,1718977845747,-151.0,0.000218,2]
[330061607,1718977845756,-624458.263004,0.000218,2]
[330061608,1718977845766,-151.0,0.000218,2]
[330061609,1718977845776,-151.0,0.000218,2]
[330061610,1718977845786,-151.0,0.000218,2]
[330061611,1718977845796,-612.968945,0.000218,2]
[330061612,1718977845808,-612.968945,0.000218,2]
[330061613,1718977845822,-151.0,0.000218,2]
[330061614,1718977845831,-151.0,0.000218,2]
[330061615,1718977845840,-395.9475776,0.00021816,2]
[330061616,1718977845849,-10000.0,0.00021817,2]
[330061617,1718977845858,-1189.05020578,0.00021849,2]
[330061618,1718977845867,-887.04447731,0.0002189,2]
[330061619,1718977845876,-604.40336914,0.0002189,2]
[330061620,1718977845886,-39983.11229786,0.00021891,2]
[330061621,1718977845895,-2014.18467041,0.00021891,2]
[330061622,1718977845904,-500.0,0.00021917,4]
[330061623,1718977845913,-552.42089485,0.00021917,4]
[330061624,1718977845923,-500.0,0.00021917,4]
[330061625,1718977845933,-500.0,0.00021917,4]
[330061626,1718977845943,-500.0,0.00021917,4]
[330061627,1718977845953,-500.0,0.00021917,4]
[330061628,1718977845962,-500.0,0.00021917,4]
[330061629,1718977845972,-500.0,0.00021917,4]
[330061630,1718977845982,-324.36198575,0.00021917,2]
[330061631,1718977845994,-500.0,0.00021917,4]
[330061632,1718977846004,-500.0,0.00021917,4]
[330061633,1718977846013,-500.0,0.00021917,4]
[330061634,1718977846023,-248.13258578,0.00021917,4]
[330061635,1718977846033,-500.0,0.00021917,4]
[330061636,1718977846043,-500.0,0.00021917,4]
[330061637,1718977846053,-500.0,0.00021917,4]
[330061638,1718977846071,-500.0,0.00021917,4]
[330061639,1718977846080,-170.58390145,0.00021917,4]
[330061640,1718977846090,-501.98833413,0.00021917,4]
[330061641,1718977846100,-500.0,0.00021917,4]
[330061642,1718977846110,-500.0,0.00021917,4]
[330061643,1718977846119,-500.0,0.00021917,4]
[330061644,1718977846129,-500.0,0.00021917,4]
[330061645,1718977846138,-500.0,0.00021917,4]
[330061646,1718977846147,-501.12735129,0.00021917,4]
[330061647,1718977846156,-500.0,0.00021917,4]
[330061648,1718977846166,-500.0,0.00021917,4]
[330061649,1718977846176,-500.0,0.00021917,4]
[330061650,1718977846186,-500.0,0.00021917,4]
[330061651,1718977846195,-500.0,0.00021917,4]
[330061652,1718977846205,-500.0,0.00021917,4]
[330061653,1718977846217,-500.0,0.00021917,4]
[330061654,1718977846228,-319.31567258,0.00021917,4]
[330061655,1718977846238,-500.0,0.00021917,4]
[330061656,1718977846248,-200.0,0.00021917,4]
[330061657,1718977846257,-318.22804138,0.00021917,4]
[330061658,1718977846267,-500.0,0.00021917,4]
[330061659,1718977846277,-500.0,0.00021917,4]
[330061660,1718977846287,-457.7395741,0.00021917,2]
[330061661,1718977846296,-806.22,0.00021917,4]
[330061662,1718977846310,-500.0,0.00021917,4]
[330061663,1718977846319,-500.0,0.00021917,4]
[330061664,1718977846328,-500.0,0.00021917,4]
[330061665,1718977846338,-1382.26,0.00021917,4]
[330061666,1718977846347,-500.0,0.00021917,4]
[330061667,1718977846356,-154.74781971,0.00021917,4]
[330061668,1718977846365,-621.74,0.00021917,4]
[330061669,1718977846376,-500.0,0.00021917,4]
[330061670,1718977846386,-500.0,0.00021917,4]
[330061671,1718977846397,-500.0,0.00021917,4]
[330061672,1718977846408,-500.0,0.00021917,4]
[330061673,1718977846418,-758.75,0.00021917,4]
[330061674,1718977846428,-643.49,0.00021917,4]
[330061675,1718977846439,-500.0,0.00021917,4]
[330061676,1718977846449,-1758.39,0.00021917,4]
[330061677,1718977846459,-157.24187668,0.00021917,4]
[330061681,1718977846469,-495.72641348,0.00021917,2]
[330061683,1718977846479,-500.0,0.00021917,4]
[330061685,1718977846490,-583.0,0.00021917,4]
[330061686,1718977846501,-500.0,0.00021917,4]
[330061688,1718977846511,-500.0,0.00021917,4]
[330061689,1718977846523,-873.56,0.00021917,4]
[330061690,1718977846534,-500.0,0.00021917,4]
[330061691,1718977846545,-500.0,0.00021917,4]
[330061692,1718977846555,-797.4349318,0.00021917,4]
[330061698,1718977847561,-269.8850682,0.00021917,4]
[330061699,1718977847571,-500.0,0.00021917,4]
[330061700,1718977847579,-195.09940007,0.00021917,4]
[330061701,1718977847591,-304.90059993,0.00021917,4]
[330061702,1718977847600,-500.0,0.00021917,4]
[330061703,1718977847609,-500.0,0.00021917,4]
[330061704,1718977847619,-471.53523851,0.00021917,4]
[330061705,1718977847631,-28.46476149,0.00021917,4]
[330061706,1718977847640,-397.40094762,0.00021917,4]
[330061707,1718977847652,-102.59905238,0.00021917,4]
[330061708,1718977847662,-500.0,0.00021917,4]
[330061709,1718977847672,-500.0,0.00021917,4]
[330061710,1718977847681,-500.0,0.00021917,4]
[330061711,1718977847692,-1187.07,0.00021917,4]
[330061712,1718977847701,-818.63,0.00021917,4]
[330061713,1718977847710,-500.0,0.00021917,4]
[330061714,1718977847720,-500.0,0.00021917,4]
[330061715,1718977847730,-500.0,0.00021917,4]
[330061716,1718977847741,-608.23130707,0.00021917,4]
[330061717,1718977847750,-500.0,0.00021917,4]
[330061718,1718977847760,-142.58282055,0.00021917,4]
[330061719,1718977847773,-372.21717945,0.00021917,4]
[330061720,1718977847783,-500.0,0.00021917,4]
[330061721,1718977847793,-1034.01,0.00021917,4]
[330061722,1718977847803,-500.0,0.00021917,4]
[330061723,1718977847815,-500.0,0.00021917,4]
[330061724,1718977847824,-500.0,0.00021917,4]
[330061725,1718977847834,-500.0,0.00021917,4]
[330061726,1718977847844,-608.86,0.00021917,4]
[330061727,1718977847854,-1220.04,0.00021917,4]
[330061728,1718977847864,-914.76,0.00021917,4]
[330061729,1718977847874,-552.17,0.00021917,4]
[330061730,1718977847883,-774.96,0.00021917,4]
[330061731,1718977847893,-500.0,0.00021917,4]
[330061732,1718977847903,-561.59460687,0.00021917,4]
[330061733,1718977847914,-500.0,0.00021917,4]
[330061734,1718977847924,-500.0,0.00021917,4]
[330061735,1718977847934,-1415.8,0.00021917,4]
[330061736,1718977847944,-500.0,0.00021917,4]
[330061737,1718977847953,-1069.15,0.00021917,4]
[330061738,1718977847964,-629.1,0.00021917,4]
[330061739,1718977847975,-504.49,0.00021917,4]
[330061740,1718977847986,-651.63,0.00021917,4]
[330061741,1718977848000,-500.0,0.00021917,4]
[330061742,1718977848010,-500.0,0.00021917,4]
[330061743,1718977848021,-500.0,0.00021917,4]
[330061744,1718977848033,-952.06,0.00021917,4]
[330061745,1718977848044,-500.0,0.00021917,4]
[330061746,1718977848054,-1110.23,0.00021917,4]
[330061747,1718977848067,-500.0,0.00021917,4]
[330061748,1718977848077,-500.0,0.00021917,4]
[330061749,1718977848087,-500.0,0.00021917,4]
[330061750,1718977848098,-515.5571116,0.00021917,4]
[330061751,1718977848107,-500.0,0.00021917,4]
[330061752,1718977848117,-582.61,0.00021917,4]
[330061753,1718977848126,-500.0,0.00021917,4]
[330061754,1718977848136,-500.0,0.00021917,4]
[330061755,1718977848145,-500.0,0.00021917,4]
[330061756,1718977848155,-500.0,0.00021917,4]
[330061757,1718977848166,-500.0,0.00021917,4]
[330061758,1718977848176,-500.0,0.00021917,4]
[330061759,1718977848186,-500.0,0.00021917,4]
[330061760,1718977848195,-500.0,0.00021917,4]
[330061761,1718977848206,-1025.44,0.00021917,4]
[330061762,1718977848215,-825.95,0.00021917,4]
[330061763,1718977848226,-500.0,0.00021917,4]
[330061764,1718977848236,-500.0,0.00021917,4]
[330061765,1718977848246,-500.0,0.00021917,4]
[330061766,1718977848255,-500.0,0.00021917,4]
[330061767,1718977848264,-500.0,0.00021917,4]
[330061768,1718977848274,-687.77,0.00021917,4]
[330061769,1718977848284,-500.0,0.00021917,4]
[330061770,1718977848294,-338.84886684,0.00021917,4]
[330061771,1718977848303,-960.71,0.00021917,4]
[330061772,1718977848316,-830.28,0.00021917,4]
[330061773,1718977848325,-550.3,0.00021917,4]
[330061774,1718977848335,-500.0,0.00021917,4]
[330061775,1718977848344,-874.23,0.00021917,4]
[330061776,1718977848353,-500.0,0.00021917,4]
[330061777,1718977848364,-500.0,0.00021917,4]
[330061778,1718977848374,-500.0,0.00021917,4]
[330061779,1718977848384,-816.25,0.00021917,4]
[330061780,1718977848393,-500.0,0.00021917,4]
[330061781,1718977848403,-500.0,0.00021917,4]
[330061782,1718977848412,-664.99,0.00021917,4]
[330061783,1718977848421,-238.57,0.00021917,4]
[330061784,1718977848431,-500.0,0.00021917,4]
[330061785,1718977848440,-680.38,0.00021917,4]
[330061786,1718977848450,-1079.66,0.00021917,4]
[330061787,1718977848460,-500.0,0.00021917,4]
[330061788,1718977848470,-1049.84,0.00021917,4]
[330061789,1718977848480,-500.0,0.00021917,4]
[330061790,1718977848490,-820.76,0.00021917,4]
[330061791,1718977848501,-542.17,0.00021917,4]
[330061792,1718977848510,-500.0,0.00021917,4]
[330061793,1718977848520,-553.93,0.00021917,4]
[330061794,1718977848530,-500.0,0.00021917,4]
[330061795,1718977848540,-500.0,0.00021917,4]
[330061796,1718977848550,-500.0,0.00021917,4]
[330061797,1718977848560,-500.0,0.00021917,4]
[330061798,1718977848570,-500.0,0.00021917,4]
[330061799,1718977848579,-500.0,0.00021917,4]
[330061800,1718977848589,-500.0,0.00021917,4]
[330061801,1718977848599,-500.0,0.00021917,4]
[330061802,1718977848609,-500.0,0.00021917,4]
[330061803,1718977848619,-500.0,0.00021917,4]
[330061804,1718977848628,-500.0,0.00021917,4]
[330061805,1718977848639,-500.34,0.00021917,8]
[330061806,1718977848650,-500.0,0.00021917,4]
[330061807,1718977848660,-500.0,0.00021917,4]
[330061808,1718977848671,-609.55,0.00021917,4]
[330061809,1718977848681,-500.0,0.00021917,4]
[330061810,1718977848691,-500.0,0.00021917,4]
[330061811,1718977848702,-936.19,0.00021917,4]
[330061812,1718977848712,-500.0,0.00021917,4]
[330061813,1718977848722,-1370.22,0.00021917,4]
[330061814,1718977848732,-831.48,0.00021917,4]
[330061815,1718977848742,-579.88,0.00021917,4]
[330061816,1718977848753,-635.68,0.00021917,4]
[330061817,1718977848763,-500.0,0.00021917,4]
[330061818,1718977848773,-500.0,0.00021917,4]
[330061819,1718977848783,-500.0,0.00021917,4]
[330061820,1718977848792,-500.0,0.00021917,4]
[330061821,1718977848803,-500.0,0.00021917,4]
[330061822,1718977848815,-500.0,0.00021917,4]
[330061823,1718977848824,-500.0,0.00021917,4]
[330061824,1718977848834,-817.85,0.00021917,4]
[330061825,1718977848847,-745.11,0.00021917,4]
[330061826,1718977848857,-717.2,0.00021917,4]
[330061827,1718977848866,-500.0,0.00021917,4]
[330061828,1718977848876,-500.0,0.00021917,4]
[330061829,1718977848886,-500.0,0.00021917,4]
[330061830,1718977848896,-500.0,0.00021917,4]
[330061831,1718977848905,-827.35,0.00021917,4]
[330061832,1718977848915,-500.0,0.00021917,4]
[330061833,1718977848924,-500.0,0.00021917,4]
[330061834,1718977848934,-748.04,0.00021917,4]
[330061835,1718977848944,-500.0,0.00021917,4]
[330061836,1718977848954,-500.0,0.00021917,4]
[330061837,1718977848963,-500.0,0.00021917,4]
[330061838,1718977848972,-500.0,0.00021917,4]
[330061839,1718977848984,-529.04,0.00021917,4]
[330061840,1718977848995,-500.0,0.00021917,4]
[330061841,1718977849005,-500.0,0.00021917,4]
[330061842,1718977849015,-500.0,0.00021917,4]
[330061843,1718977849024,-500.0,0.00021917,4]
[330061844,1718977849034,-500.0,0.00021917,4]
[330061845,1718977849044,-506.72790152,0.00021917,4]
[330061846,1718977849053,-500.0,0.00021917,4]
[330061847,1718977849066,-500.0,0.00021917,4]
[330061848,1718977849078,-500.0,0.00021917,4]
[330061849,1718977849087,-500.0,0.00021917,4]
[330061850,1718977849096,-949.28,0.00021917,4]
[330061851,1718977849105,-500.0,0.00021917,4]
[330061852,1718977849116,-500.0,0.00021917,4]
[330061853,1718977849126,-500.0,0.00021917,4]
[330061854,1718977849135,-850.68,0.00021917,4]
[330061855,1718977849145,-500.0,0.00021917,4]
[330061856,1718977849155,-629.6,0.00021917,4]
[330061857,1718977849164,-500.0,0.00021917,4]
[330061858,1718977849174,-500.0,0.00021917,4]
[330061859,1718977849183,-533.77168028,0.00021917,4]
[330061860,1718977849192,-500.0,0.00021917,4]
[330061861,1718977849202,-500.0,0.00021917,4]
[330061862,1718977849212,-1130.04,0.00021917,4]
[330061863,1718977849222,-500.0,0.00021917,4]
[330061864,1718977849232,-2112.8,0.00021917,4]
[330061865,1718977849242,-635.1,0.00021917,4]
[330061866,1718977849252,-500.0,0.00021917,4]
[330061867,1718977849261,-500.0,0.00021917,4]
[330061868,1718977849271,-640.68831602,0.00021917,4]
[330061869,1718977849281,-1518.85,0.00021917,4]
[330061870,1718977849291,-747.15,0.00021917,4]
[330061871,1718977849301,-541.86,0.00021917,4]
[330061872,1718977849313,-500.0,0.00021917,4]
[330061873,1718977849323,-737.62,0.00021917,4]
[330061874,1718977849332,-247.17753286,0.00021917,4]
[330061875,1718977849342,-500.0,0.00021917,4]
[330061876,1718977849351,-500.0,0.00021917,4]
[330061877,1718977849361,-500.0,0.00021917,4]
[330061878,1718977849371,-500.0,0.00021917,4]
[330061879,1718977849381,-500.0,0.00021917,4]
[330061880,1718977849391,-500.0,0.00021917,4]
[330061881,1718977849400,-500.0,0.00021917,4]
[330061882,1718977849410,-947.67,0.00021917,4]
[330061883,1718977849419,-500.0,0.00021917,4]
[330061884,1718977849429,-713.13,0.00021917,4]
[330061885,1718977849438,-500.0,0.00021917,4]
[330061886,1718977849448,-500.0,0.00021917,4]
[330061887,1718977849459,-500.0,0.00021917,4]
[330061888,1718977849469,-764.08,0.00021917,4]
[330061889,1718977849479,-1084.36,0.00021917,4]
[330061890,1718977849489,-500.0,0.00021917,4]
[330061891,1718977849499,-558.29,0.00021917,4]
[330061892,1718977849509,-1016.53,0.00021917,4]
[330061893,1718977849519,-808.02,0.00021917,4]
[330061894,1718977849529,-501.88558853,0.00021917,4]
[330061895,1718977849538,-1176.11,0.00021917,4]
[330061896,1718977849548,-544.7239364,0.00021917,4]
[330061897,1718977849559,-1111.76,0.00021917,4]
[330061898,1718977849568,-500.0,0.00021917,4]
[330061899,1718977849578,-500.0,0.00021917,4]
[330061900,1718977849587,-611.47,0.00021917,4]
[330061901,1718977849597,-500.0,0.00021917,4]
[330061902,1718977849607,-500.0,0.00021917,4]
[330061903,1718977849616,-500.0,0.00021917,4]
[330061904,1718977849626,-516.83099498,0.00021917,4]
[330061905,1718977849636,-520.14,0.00021917,4]
[330061906,1718977849646,-953.46,0.00021917,4]
[330061907,1718977849655,-500.0,0.00021917,4]
[330061908,1718977849665,-526.36709984,0.00021917,4]
[330061909,1718977849675,-500.0,0.00021917,4]
[330061910,1718977849685,-500.0,0.00021917,4]
[330061911,1718977849695,-500.0,0.00021917,4]
[330061912,1718977849706,-500.0,0.00021917,4]
[330061913,1718977849717,-607.52,0.00021917,4]
[330061914,1718977849727,-500.0,0.00021917,4]
[330061915,1718977849736,-500.0,0.00021917,4]
[330061916,1718977849745,-768.29,0.00021917,4]
[330061917,1718977849756,-533.19,0.00021917,4]
[330061918,1718977849766,-559.41,0.00021917,4]
[330061919,1718977849776,-1344.6,0.00021917,4]
[330061920,1718977849786,-500.0,0.00021917,4]
[330061921,1718977849795,-500.0,0.00021917,4]
[330061922,1718977849805,-500.0,0.00021917,4]
[330061923,1718977849816,-500.0,0.00021917,4]
[330061924,1718977849826,-731.9,0.00021917,4]
[330061925,1718977849835,-833.83,0.00021917,4]
[330061926,1718977849845,-500.0,0.00021917,4]
[330061927,1718977849854,-500.0,0.00021917,4]
[330061928,1718977849863,-523.79,0.00021917,4]
[330061929,1718977849873,-570.98,0.00021917,4]
[330061930,1718977849883,-500.0,0.00021917,4]
[330061931,1718977849993,-500.0,0.00021917,4]
[330061932,1718977850006,-2151.03,0.00021917,4]
[330061933,1718977850015,-500.0,0.00021917,4]
[330061934,1718977850026,-500.0,0.00021917,4]
[330061935,1718977850038,-500.0,0.00021917,4]
[330061936,1718977850047,-500.0,0.00021917,4]
[330061937,1718977850057,-500.0,0.00021917,4]
[330061938,1718977850067,-1022.81,0.00021917,4]
[330061939,1718977850078,-572.91,0.00021917,4]
[330061940,1718977850087,-500.0,0.00021917,4]
[330061941,1718977850097,-500.0,0.00021917,4]
[330061942,1718977850106,-851.26,0.00021917,4]
[330061943,1718977850116,-500.0,0.00021917,4]
[330061944,1718977850126,-500.0,0.00021917,4]
[330061945,1718977850135,-500.0,0.00021917,4]
[330061946,1718977850145,-523.74082509,0.00021917,4]
[330061947,1718977850155,-500.0,0.00021917,4]
[330061948,1718977850164,-500.0,0.00021917,4]
[330061949,1718977850174,-500.0,0.00021917,4]
[330061950,1718977850183,-500.0,0.00021917,4]
[330061951,1718977850193,-1435.76,0.00021917,4]
[330061952,1718977850202,-500.0,0.00021917,4]
[330061953,1718977850212,-500.0,0.00021917,4]
[330061954,1718977850222,-500.0,0.00021917,4]
[330061955,1718977850231,-500.0,0.00021917,4]
[330061956,1718977850241,-1172.27,0.00021917,4]
[330061957,1718977850250,-500.0,0.00021917,4]
[330061958,1718977850260,-1927.83,0.00021917,4]
[330061959,1718977850269,-644.65,0.00021917,4]
[330061960,1718977850278,-541.32084799,0.00021917,4]
[330061961,1718977850288,-910.3,0.00021917,4]
[330061962,1718977850297,-500.0,0.00021917,4]
[330061963,1718977850307,-742.28,0.00021917,4]
[330061964,1718977850319,-500.0,0.00021917,4]
[330061965,1718977850328,-500.0,0.00021917,4]
[330061966,1718977850337,-500.0,0.00021917,4]
[330061967,1718977850347,-1306.09,0.00021917,4]
[330061968,1718977850356,-965.68,0.00021917,4]
[330061969,1718977850366,-500.0,0.00021917,4]
[330061970,1718977850375,-509.95,0.00021917,4]
[330061971,1718977850384,-2032.59,0.00021917,4]
[330061972,1718977850394,-500.0,0.00021917,4]
[330061973,1718977850403,-500.0,0.00021917,4]
[330061974,1718977850413,-538.73901115,0.00021917,4]
[330061975,1718977850423,-500.0,0.00021917,4]
[330061976,1718977850431,-715.19,0.00021917,4]
[330061977,1718977850441,-500.0,0.00021917,4]
[330061978,1718977850451,-880.63,0.00021917,4]
[330061979,1718977850460,-500.0,0.00021917,4]
[330061980,1718977850470,-1743.74,0.00021917,4]
[330061981,1718977850479,-500.0,0.00021917,4]
[330061982,1718977850488,-653.32,0.00021917,4]
[330061983,1718977850497,-798.05,0.00021917,4]
[330061984,1718977850507,-519.19009933,0.00021917,4]
[330061985,1718977850516,-907.87,0.00021917,4]
[330061986,1718977850525,-662.45,0.00021917,4]
[330061987,1718977850535,-500.0,0.00021917,4]
[330061988,1718977850545,-2098.68,0.00021917,4]
[330061989,1718977850554,-724.87,0.00021917,4]
[330061990,1718977850566,-500.0,0.00021917,4]
[330061991,1718977850576,-500.0,0.00021917,4]
[330061992,1718977850586,-500.0,0.00021917,4]
[330061993,1718977850596,-500.0,0.00021917,4]
[330061994,1718977850605,-500.0,0.00021917,4]
[330061995,1718977850614,-500.0,0.00021917,4]
[330061996,1718977850623,-779.23,0.00021917,4]
[330061997,1718977850632,-500.0,0.00021917,4]
[330061998,1718977850641,-500.0,0.00021917,4]
[330061999,1718977850650,-2092.0,0.00021917,4]
[330062000,1718977850659,-500.0,0.00021917,4]
[330062001,1718977850668,-500.0,0.00021917,4]
[330062002,1718977850678,-1522.69,0.00021917,4]
[330062003,1718977850687,-1142.19,0.00021917,4]
[330062004,1718977850695,-500.0,0.00021917,4]
[330062005,1718977850704,-543.33919375,0.00021917,4]
[330062006,1718977850713,-500.0,0.00021917,4]
[330062007,1718977850722,-500.0,0.00021917,4]
[330062008,1718977850731,-500.0,0.00021917,4]
[330062009,1718977850740,-500.0,0.00021917,4]
[330062010,1718977850749,-504.27068464,0.00021917,4]
[330062011,1718977850758,-500.0,0.00021917,4]
[330062012,1718977850767,-500.0,0.00021917,4]
[330062013,1718977850777,-2238.83,0.00021917,4]
[330062014,1718977850786,-586.28815353,0.00021917,4]
[330062015,1718977850795,-500.0,0.00021917,4]
[330062016,1718977850804,-500.0,0.00021917,4]
[330062017,1718977850814,-500.0,0.00021917,4]
[330062018,1718977850824,-1872.93,0.00021917,4]
[330062019,1718977850833,-500.0,0.00021917,4]
[330062020,1718977850842,-500.0,0.00021917,4]
[330062021,1718977850851,-564.38,0.00021917,4]
[330062022,1718977850861,-500.0,0.00021917,4]
[330062023,1718977850870,-500.0,0.00021917,4]
[330062024,1718977850879,-896.5,0.00021917,4]
[330062025,1718977850888,-500.0,0.00021917,4]
[330062026,1718977850898,-918.37,0.00021917,4]